fUSD/lending_fUSD_20241030
["ID","MTS","AMOUNT","RATE_DAILY","PERIOD"]
[341052813,1730306488592,-50000.0,0.00044116,32]
[341052814,1730306488620,-50000.0,0.00044116,33]
[341052815,1730306488650,-50000.0,0.00044116,34]
[341052816,1730306488677,-278071.6220294,0.00044116,120]
[341052817,1730306488705,-4441.41830466,0.00044116,120]
[341052818,1730306488730,-30000.0,0.00044116,30]
[341052819,1730306488754,-7054.74142442,0.00044116,30]
[341052820,1730306488784,-5945.32866738,0.00044116,30]
[341052821,1730306488809,-798276.40101959,0.00044116,30]
[341052822,1730306488834,-1626210.48855455,0.00044116,30]
[341052823,1730306493648,-197470.84460979,0.00044116,30]
[341052824,1730306493672,-11645.58831774,0.00044116,30]
[341052825,1730306493696,-6841.13197213,0.00044116,30]
[341052826,1730306493720,-317988.8081846,0.00044116,30]
[341052827,1730306493744,-18329.66252338,0.00044116,30]
[341052828,1730306493769,-6286.24675455,0.00044116,30]
[341052829,1730306493797,-221431.30378997,0.00044116,30]
[341052830,1730306493821,-300.0,0.00044116,31]
[341052831,1730306493846,-576.66489478,0.00044116,120]
[341052832,1730306493870,-5100.0,0.00044116,32]
[341052833,1730306493894,-22292.04892283,0.00044116,30]
[341052834,1730306493917,-150000.0,0.00044116,30]
[341052835,1730306493942,-417.2752534,0.00044116,120]
[341052836,1730306493966,-5000.0,0.00044116,30]
[341052837,1730306493989,-5000.0,0.00044116,30]
[341052838,1730306494013,-5000.0,0.00044116,60]
[341052839,1730306494038,-9755.82774226,0.00044116,30]
[341052840,1730306494063,-3001.77336641,0.00044116,120]
[341052841,1730306494087,-1552105.6594,0.00044116,30]
[341052842,1730306494111,-15976.51152889,0.00044116,30]
[341052843,1730306494134,-264.94523014,0.00044116,120]
[341052844,1730306494158,-216.0,0.00044116,120]
[341052845,1730306494182,-178.39564096,0.00044116,60]
[341052846,1730306494206,-165.0,0.00044116,120]
[341052847,1730306494229,-418.12603709,0.00044116,120]
[341052848,1730306494252,-25126.0,0.00044116,60]
[341052849,1730306494278,-444.40040087,0.00044116,120]
[341052850,1730306494299,-168.38632179,0.00044116,120]
[341052851,1730306494327,-150.37093257,0.00044116,120]
[341052852,1730306494350,-157.99834795,0.00044116,30]
[341052853,1730306494373,-418191.0298279,0.00044116,30]
[341052854,1730306497520,-580318.73568776,0.00044116,30]
[341052855,1730306497550,-131633.38009739,0.00044116,30]
[341052856,1730306497573,-1002.0,0.00044116,120]
[341052857,1730306497595,-25453.57613038,0.00044116,120]
[341052858,1730306497616,-4905.7716834,0.00044116,120]
[341052859,1730306497638,-300.32884568,0.00044116,120]
[341052860,1730306497663,-156.26187374,0.00044116,120]
[341052861,1730306497689,-35461.88158923,0.00044116,30]
[341052862,1730306497712,-170.0,0.00044116,120]
[341052863,1730306497737,-5100.0,0.00044116,33]
[341052864,1730306497764,-3000.0,0.00044116,120]
[341052865,1730306497794,-374.0,0.00044116,30]
[341052866,1730306497819,-13399.99999901,0.00044116,30]
[341052867,1730306497842,-1000.0,0.00044116,30]
[341052868,1730306497865,-1000.0,0.00044116,30]
[341052869,1730306497887,-1000.0,0.00044116,30]
[341052870,1730306497909,-1000.0,0.00044116,30]
[341052871,1730306497930,-1000.0,0.00044116,30]
[341052872,1730306497952,-1000.0,0.00044116,30]
[341052873,1730306497974,-1000.0,0.00044116,30]
[341052874,1730306497995,-1000.0,0.00044116,30]
[341052875,1730306498017,-1000.0,0.00044116,30]
[341052876,1730306498041,-1000.0,0.00044116,30]
[341052877,1730306498063,-1000.0,0.00044116,30]
[341052878,1730306498086,-964.31469576,0.00044116,30]
[341052879,1730306528878,187.0,0.00044116,30]
[341052880,1730306550676,562.0,0.00044116,30]
[341052881,1730306562493,170.0,0.00044116,120]
[341052884,1730306599869,157.39,0.00015342,2]
[341052887,1730306693319,178.39564096,0.00044116,60]
[341052888,1730306703167,576.66489478,0.00044116,120]
[341052892,1730306780331,50000.0,0.00044116,30]
[341052893,1730306793039,50000.0,0.00044116,31]
[341052894,1730306796746,50000.0,0.00044116,32]
[341052895,1730306800447,50000.0,0.00044116,33]
[341052896,1730306804326,50000.0,0.00044116,34]
[341053148,1730307031811,-250.0,0.0003,2]
[341053149,1730307031821,-1237.36,0.00030037,2]
[341053150,1730307031831,-395.32926581,0.0003154,2]
[341053151,1730307031840,-159.33,0.00031676,2]
[341053152,1730307031849,-121.80996419,0.00031762,2]
[341053153,1730307031927,-128.19003581,0.00031762,2]
[341053154,1730307031937,-161.87,0.00031779,2]
[341053155,1730307031947,-1366.95,0.00031816,2]
[341053156,1730307031957,-1729.07,0.00031836,2]
[341053157,1730307031967,-200.0,0.00031842,2]
[341053158,1730307031977,-340.42452836,0.0003188,2]
[341053159,1730307031989,-57253.37691713,0.0003188,2]
[341053160,1730307031999,-150.0,0.00031895,7]
[341053161,1730307032008,-172.58,0.00031954,2]
[341053162,1730307032018,-326.86,0.00032035,2]
[341053163,1730307032027,-250.0,0.00032055,2]
[341053164,1730307032036,-172.64,0.00032081,2]
[341053165,1730307032046,-1000.0,0.00032107,2]
[341053166,1730307032055,-150.0,0.00032134,2]
[341053167,1730307032064,-250.0,0.00032187,2]
[341053168,1730307032074,-926.69,0.00032204,2]
[341053169,1730307032084,-200.0,0.0003222,2]
[341053170,1730307032093,-287.34,0.00032259,2]
[341053171,1730307032103,-23900.0,0.00032292,2]
[341053172,1730307032112,-159.221,0.000323,2]
[341053173,1730307032122,-159.221,0.000323,2]
[341053174,1730307032131,-159.221,0.000323,2]
[341053175,1730307032141,-159.221,0.000323,2]
[341053176,1730307032151,-159.221,0.000323,2]
[341053179,1730307032320,-159.221,0.000323,2]
[341053180,1730307032330,-159.221,0.000323,2]
[341053181,1730307032340,-159.221,0.000323,2]
[341053182,1730307032350,-159.221,0.000323,2]
[341053183,1730307032360,-159.221,0.000323,2]
[341053184,1730307032369,-1237.36,0.000323,2]
[341053185,1730307032378,-181.15,0.00032511,2]
[341053186,1730307032388,-720.65,0.00032539,2]
[341053187,1730307032398,-174.92,0.00032632,120]
[341053188,1730307032407,-862.08,0.00032707,2]
[341053189,1730307032417,-5000.00000099,0.0003287,2]
[341053190,1730307032426,-2647.81,0.00032999,2]
[341053191,1730307032436,-1716.42706126,0.0003317,2]
[341053192,1730307032446,-159.05,0.00033194,2]
[341053193,1730307032455,-167.24,0.00033276,2]
[341053194,1730307032464,-200.0,0.000333,14]
[341053195,1730307032473,-1716.42706126,0.00033498,2]
[341053196,1730307032482,-500.0,0.00033589,120]
[341053197,1730307032491,-186.2089,0.0003359,2]
[341053198,1730307032501,-2000.0,0.00033598,2]
[341053199,1730307032510,-200.0,0.00033598,2]
[341053200,1730307032519,-292.04870348,0.00033598,2]
[341053201,1730307032529,-200.0,0.00033598,2]
[341053202,1730307032539,-500.0,0.00033634,2]
[341053203,1730307032548,-1000.0,0.00033634,2]
[341053204,1730307032557,-326.65624314,0.00033733,7]
[341053205,1730307032566,-38765.03385818,0.00033734,2]
[341053206,1730307032578,-14144.59999871,0.00033734,2]
[341053207,1730307032589,-47090.36614311,0.00033734,2]
[341053208,1730307032598,-460.25819935,0.00033734,15]
[341053209,1730307032607,-500.0,0.00033773,2]
[341053210,1730307032618,-58211.933,0.00033834,2]
[341053211,1730307032628,-151.0,0.00033834,7]
[341053212,1730307032637,-151.0,0.00033834,7]
[341053213,1730307032646,-217.861208,0.00033834,7]
[341053214,1730307032655,-151.0,0.00033834,7]
[341053215,1730307032665,-155.311157,0.00033834,7]
[341053216,1730307032674,-309.16406664,0.000339,2]
[341053217,1730307032683,-173.15732877,0.000339,2]
[341053218,1730307032693,-2000.0,0.00033934,2]
[341053219,1730307032703,-200.0,0.00033934,2]
[341053220,1730307032713,-200.0,0.00033934,2]
[341053221,1730307032724,-98607.90781025,0.00034,2]
[341053226,1730307037838,-309.49678836,0.0003286,10]
[341053233,1730307040356,-9.84321164,0.0003286,10]
[341053234,1730307040366,-1176.1225848,0.00034,2]
[341053246,1730307046098,-505.482,0.00034,2]
[341053252,1730307046481,-2999.42717965,0.00034,2]
[341053253,1730307046492,-960.93705983,0.00034,2]
[341053255,1730307046642,-6002.50630544,0.00034,2]
[341053256,1730307046654,-50672.68099375,0.00034,2]
[341053306,1730307116961,156.73,0.00015342,2]
[341053327,1730307157798,50000.0,0.00044137,30]
[341053328,1730307159757,1000.0,0.00044137,30]
[341053329,1730307160563,1000.0,0.00044137,30]
[341053330,1730307160831,1000.0,0.00044137,30]
[341053331,1730307161607,1000.0,0.00044137,30]
[341053332,1730307161876,50000.0,0.00044137,31]
[341053333,1730307161949,1000.0,0.00044137,30]
[341053334,1730307162222,1000.0,0.00044137,30]
[341053335,1730307162501,1000.0,0.00044137,30]
[341053336,1730307162774,1000.0,0.00044137,30]
[341053337,1730307163044,1000.0,0.00044137,30]
[341053338,1730307163365,1000.0,0.00044137,30]
[341053339,1730307163666,1000.0,0.00044137,30]
[341053340,1730307163929,964.31469576,0.00044137,30]
[341053341,1730307165441,50000.0,0.00044137,32]
[341053342,1730307170058,50000.0,0.00044137,33]
[341053343,1730307173874,50000.0,0.00044137,34]
[341053345,1730307209532,1996.93,0.00044137,30]
[341053347,1730307324019,300.32884668,0.00044137,30]
[341053348,1730307502344,187.0,0.00044137,30]
[341053349,1730307505946,562.0,0.00044137,30]
[341053350,1730307538480,170.0,0.00044137,120]
[341053351,1730307598453,178.39564096,0.00044143,60]
[341053352,1730307703508,10000.0,0.00044143,32]
[341053353,1730307707770,10000.0,0.00044143,33]
[341053354,1730307711599,10000.0,0.00044143,34]
[341053356,1730307742234,10000.0,0.00044143,35]
[341053357,1730307817727,2781.60563768,0.00044143,34]
[341053358,1730307841804,2795.98548328,0.00044143,38]
[341053359,1730307865513,10000.0,0.00044143,36]
[341053376,1730308000145,50000.0,0.00044144,30]
[341053377,1730308003949,50000.0,0.00044144,31]
[341053378,1730308007027,50000.0,0.00044144,32]
[341053379,1730308010320,50000.0,0.00044144,33]
[341053380,1730308014930,50000.0,0.00044144,34]
[341053381,1730308020827,550.0,0.00015,2]
[341053410,1730308085380,1000.0,0.00044144,30]
[341053411,1730308086740,1000.0,0.00044144,30]
[341053412,1730308088217,1000.0,0.00044144,30]
[341053413,1730308088537,1000.0,0.00044144,30]
[341053414,1730308088776,1000.0,0.00044144,30]
[341053415,1730308089232,1000.0,0.00044144,30]
[341053416,1730308089509,1000.0,0.00044144,30]
[341053417,1730308089777,1000.0,0.00044144,30]
[341053418,1730308090054,1000.0,0.00044144,30]
[341053419,1730308090318,1000.0,0.00044144,30]
[341053420,1730308090751,1000.0,0.00044144,30]
[341053421,1730308090849,964.31469576,0.00044144,30]
[341053784,1730308235835,-156.73,0.00030548,2]
[341053785,1730308235844,-1294.41,0.00031653,2]
[341053786,1730308235854,-152.0,0.00032528,3]
[341053787,1730308235863,-250.0,0.00033,2]
[341053788,1730308235873,-1000.0,0.000332,2]
[341053789,1730308235882,-722.24,0.00033211,2]
[341053790,1730308235892,-1133.8,0.00033405,2]
[341053792,1730308235901,-482.69,0.00033405,2]
[341053794,1730308235910,-2704.52,0.00033421,2]
[341053796,1730308235919,-23900.0,0.00033424,2]
[341053798,1730308235929,-200.0,0.00033432,2]
[341053800,1730308235938,-683.47,0.0003344,2]
[341053802,1730308235947,-250.0,0.0003344,2]
[341053804,1730308235957,-200.0,0.0003344,2]
[341053806,1730308235967,-453.92,0.00033447,2]
[341053808,1730308235976,-1852.42,0.0003345,2]
[341053810,1730308235985,-194.67,0.00033459,2]
[341053812,1730308235995,-172.13,0.00033482,2]
[341053813,1730308236004,-172.58,0.00033546,2]
[341053814,1730308236013,-250.0,0.00033553,2]
[341053815,1730308236022,-150.0,0.00033557,7]
[341053817,1730308236031,-685.75,0.0003356,2]
[341053819,1730308236041,-250.0,0.00033561,120]
[341053821,1730308236050,-304.04,0.00033573,2]
[341053823,1730308236059,-402.98,0.00033574,2]
[341053825,1730308236068,-500.0,0.00033634,2]
[341053827,1730308236077,-5231.64999789,0.00033634,2]
[341053862,1730308238099,-360.53268373,0.00033199,2]
[341053863,1730308238158,-307.81234437,0.00033199,2]
[341053864,1730308238324,-253.98789997,0.00033199,2]
[341053873,1730308240016,-122.96359081,0.00033199,2]
[341053874,1730308240027,-1760.48640919,0.00033634,2]
[341053875,1730308240038,-408.370001,0.00033634,2]
[341053876,1730308240457,-268.71500001,0.00033634,2]
[341053884,1730308243175,-39164.87789191,0.00033634,2]
[341053885,1730308243184,-541.39,0.00033715,2]
[341053886,1730308243193,-202.55,0.00033715,2]
[341053887,1730308243203,-297.641,0.00033771,2]
[341053888,1730308243213,-1087.0,0.00033771,2]
[341053889,1730308243223,-152.0,0.00033809,4]
[341053890,1730308243233,-575.93,0.00033831,2]
[341053891,1730308243243,-399.82770227,0.00033897,2]
[341053892,1730308243252,-6065.039289,0.000339,2]
[341053893,1730308243262,-884.4239,0.000339,2]
[341053894,1730308243271,-402.795,0.000339,2]
[341053895,1730308243281,-1569.2611,0.000339,2]
[341053896,1730308243290,-1202.0218,0.000339,2]
[341053897,1730308243300,-2618.86672613,0.000339,2]
[341053898,1730308243319,-10831.05,0.000339,2]
[341054052,1730308247469,-8343.52717387,0.000339,2]
[341054053,1730308247479,-1294.41,0.00033917,2]
[341054054,1730308247489,-156.77,0.00033925,2]
[341054055,1730308247499,-150.01,0.00033999,2]
[341054056,1730308247509,-2465.98124672,0.00033999,2]
[341054057,1730308247519,-404.51023278,0.00034,2]
[341054058,1730308247528,-344.0,0.000343,3]
[341054059,1730308247537,-696.0,0.000344,3]
[341054060,1730308247547,-166.62,0.00034405,2]
[341054061,1730308247556,-150.0,0.00034548,10]
[341054062,1730308247565,-163.43,0.00034807,2]
[341054063,1730308247575,-722.24,0.00034872,2]
[341054064,1730308247585,-1148.65,0.00035,2]
[341054065,1730308247595,-152.0,0.0003509,5]
[341054066,1730308247604,-151.153,0.00035347,2]
[341054067,1730308247614,-166.62,0.0003554,2]
[341054068,1730308247624,-455.1,0.00035549,3]
[341054069,1730308247634,-1264.147,0.00035559,2]
[341054070,1730308247644,-463.531,0.00035559,2]
[341054071,1730308247654,-195.237,0.00035559,2]
[341054072,1730308247664,-560.733,0.00035559,2]
[341054073,1730308247674,-1983.0,0.00035559,2]
[341054074,1730308247682,-1915.0,0.00035559,2]
[341054075,1730308247691,-3368.0,0.00035559,2]
[341054076,1730308247700,-2206.0,0.00035559,2]
[341054077,1730308247710,-811.0,0.00035559,2]
[341054078,1730308247720,-1254.0,0.00035559,2]
[341054079,1730308247729,-807.0,0.00035559,2]
[341054080,1730308247739,-157.65,0.00035616,2]
[341054081,1730308247749,-167.0,0.00035618,2]
[341054082,1730308247759,-2047.0461,0.000358,2]
[341054083,1730308247768,-414.23237946,0.000358,15]
[341054084,1730308247778,-4114.7456867,0.000359,2]
[341054085,1730308247787,-572.8108,0.000359,2]
[341054086,1730308247796,-167.51263919,0.00035939,2]
[341054087,1730308247805,-309.2447264,0.00035939,2]
[341054088,1730308247814,-167.84,0.00035963,2]
[341054089,1730308247824,-500.0,0.00035973,2]
[341054090,1730308247834,-921.93355326,0.0003599,2]
[341054091,1730308247844,-500.0,0.00035999,2]
[341054092,1730308247853,-486760.12691686,0.00036,2]
[341054093,1730308247862,-2688.51850412,0.00036039,7]
[341054094,1730308247872,-5743.64852045,0.00036039,7]
[341054095,1730308247882,-1294.41,0.00036181,2]
[341054096,1730308247892,-366.492,0.00036192,44]
[341054097,1730308247902,-577.45,0.0003623,2]
[341054098,1730308247911,-577.45,0.00036239,2]
[341054099,1730308247920,-577.45,0.00036249,2]
[341054100,1730308247929,-577.45,0.00036258,2]
[341054101,1730308247938,-577.45,0.00036268,2]
[341054102,1730308247948,-577.45,0.00036277,2]
[341054103,1730308247957,-577.45,0.00036287,2]
[341054104,1730308247967,-577.45,0.00036296,2]
[341054105,1730308247977,-577.45,0.00036306,2]
[341054106,1730308247986,-577.45,0.00036315,2]
[341054107,1730308247996,-577.45,0.00036325,2]
[341054108,1730308248005,-577.45,0.00036334,2]
[341054109,1730308248014,-577.45,0.00036344,2]
[341054110,1730308248024,-577.45,0.00036353,2]
[341054111,1730308248034,-577.45,0.00036363,2]
[341054112,1730308248044,-152.0,0.00036371,6]
[341054113,1730308248053,-577.45,0.00036373,2]
[341054114,1730308248062,-577.45,0.00036382,2]
[341054115,1730308248070,-577.45,0.00036392,2]
[341054116,1730308248080,-577.45,0.00036401,2]
[341054117,1730308248090,-577.45,0.00036411,2]
[341054118,1730308248099,-722.24,0.00036532,2]
[341054119,1730308248109,-166.62,0.00036676,2]
[341054120,1730308248119,-414.23237937,0.00036716,15]
[341054121,1730308248129,-309.24472639,0.0003675,2]
[341054122,1730308248138,-700.0,0.00036751,13]
[341054123,1730308248149,-700.0,0.00036751,13]
[341054124,1730308248158,-700.0,0.00036751,13]
[341054125,1730308248168,-700.0,0.00036751,13]
[341054126,1730308248178,-700.0,0.00036751,13]
[341054127,1730308248187,-700.0,0.00036762,13]
[341054128,1730308248196,-700.0,0.00036762,13]
[341054129,1730308248206,-700.0,0.00036762,13]
[341054130,1730308248215,-700.0,0.00036762,13]
[341054131,1730308248225,-700.0,0.00036762,13]
[341054132,1730308248234,-159.97912448,0.00036773,5]
[341054133,1730308248244,-500.0,0.00036773,5]
[341054134,1730308248253,-50085.02309191,0.000368,2]
[341054135,1730308248262,-254.71,0.00036968,2]
[341054136,1730308248271,-151.0,0.00036982,2]
[341054137,1730308248280,-1000.0,0.00037349,2]
[341054138,1730308248290,-500.0,0.00037438,3]
[341054139,1730308248299,-500.0,0.00037447,3]
[341054140,1730308248309,-500.0,0.00037456,3]
[341054141,1730308248319,-500.0,0.00037465,3]
[341054142,1730308248329,-500.0,0.00037474,3]
[341054143,1730308248339,-500.0,0.00037482,3]
[341054144,1730308248349,-500.0,0.00037491,3]
[341054145,1730308248359,-552.0,0.000375,5]
[341054146,1730308248369,-500.0,0.000375,3]
[341054147,1730308248379,-150.0,0.000375,26]
[341054148,1730308248389,-309.24472639,0.0003756,2]
[341054149,1730308248401,-156.35065037,0.0003762,2]
[341054150,1730308248410,-414.23237937,0.00037632,15]
[341054151,1730308248419,-152.0,0.00037652,7]
[341054152,1730308248430,-165.67511494,0.000378,2]
[341054153,1730308248440,-600.0,0.000378,13]
[341054154,1730308248449,-166.62,0.00037812,2]
[341054155,1730308248459,-538.63859077,0.000379,2]
[341054156,1730308248470,-1200.0,0.000379,13]
[341054157,1730308248480,-150.0,0.00038,7]
[341054158,1730308248490,-150.0,0.00038,27]
[341054159,1730308248500,-722.24,0.00038193,2]
[341054160,1730308248510,-154.08484883,0.00038258,2]
[341054161,1730308248519,-254.71,0.00038275,2]
[341054162,1730308248528,-3300.69,0.00038355,120]
[341054163,1730308248538,-20323.52668053,0.00038356,2]
[341054164,1730308248548,-98626.08486251,0.00038356,2]
[341054165,1730308248557,-684103.88,0.00038356,2]
[341054166,1730308248567,-10089.47403233,0.00038356,2]
[341054167,1730308248577,-8529.26,0.00038356,2]
[341054168,1730308248586,-196.16685313,0.00038356,2]
[341054169,1730308248596,-309.24472639,0.00038371,2]
[341054170,1730308248605,-500.0,0.00038373,5]
[341054171,1730308248615,-202.5757987,0.00038373,5]
[341054172,1730308248625,-160.65417729,0.00038373,5]
[341054173,1730308248635,-500.0,0.00038373,5]
[341054174,1730308248646,-500.0,0.00038373,5]
[341054175,1730308248655,-500.0,0.00038373,5]
[341054176,1730308248664,-511.53384182,0.00038373,5]
[341054177,1730308248674,-500.0,0.00038373,5]
[341054178,1730308248683,-1294.41,0.00038445,2]
[341054179,1730308248694,-150.0,0.000385,28]
[341054180,1730308248704,-414.23237937,0.00038548,15]
[341054181,1730308248714,-1249.0,0.00038559,2]
[341054182,1730308248724,-451.0,0.00038559,2]
[341054183,1730308248734,-557.0,0.00038559,2]
[341054184,1730308248743,-1983.0,0.00038559,2]
[341054185,1730308248753,-1909.0,0.00038559,2]
[341054186,1730308248762,-3368.0,0.00038559,2]
[341054187,1730308248772,-1951.835,0.00038559,2]
[341054188,1730308248781,-811.0,0.00038559,2]
[341054189,1730308248791,-1252.0,0.00038559,2]
[341054190,1730308248800,-660.623,0.00038559,2]
[341054191,1730308248809,-158.0,0.00038679,5]
[341054192,1730308248819,-1000.0,0.00038739,2]
[341054193,1730308248828,-167.24,0.00038768,2]
[341054194,1730308248838,-152.0,0.00038933,8]
[341054195,1730308248847,-166.62,0.00038947,2]
[341054196,1730308248856,-267.910466,0.00039,28]
[341054197,1730308248866,-3300.69,0.0003904,120]
[341054198,1730308248875,-500.0,0.00039052,60]
[341054199,1730308248884,-309.24472639,0.00039181,2]
[341054200,1730308248895,-414.23237937,0.00039464,15]
[341054201,1730308248904,-153.0,0.00039579,2]
[341054202,1730308248915,-153.0,0.00039579,2]
[341054204,1730308248925,-153.0,0.00039579,2]
[341054205,1730308248935,-153.0,0.00039579,2]
[341054206,1730308248944,-153.0,0.00039579,2]
[341054207,1730308248954,-153.0,0.00039579,2]
[341054208,1730308248964,-153.0,0.00039579,2]
[341054209,1730308248975,-254.71,0.00039582,2]
[341054210,1730308248984,-153.0,0.0003959,2]
[341054211,1730308248994,-153.0,0.0003959,2]
[341054212,1730308249003,-153.0,0.0003959,2]
[341054213,1730308249013,-153.0,0.0003959,2]
[341054214,1730308249022,-153.0,0.0003959,2]
[341054215,1730308249031,-153.0,0.0003959,2]
[341054216,1730308249040,-153.0,0.0003959,2]
[341054217,1730308249050,-153.0,0.0003959,2]
[341054218,1730308249059,-153.0,0.0003959,2]
[341054219,1730308249068,-153.0,0.0003959,2]
[341054220,1730308249078,-153.0,0.0003959,2]
[341054221,1730308249087,-153.0,0.0003959,2]
[341054222,1730308249097,-153.0,0.0003959,2]
[341054223,1730308249106,-3300.69,0.00039725,120]
[341054224,1730308249116,-15588.60929093,0.000398,2]
[341054225,1730308249125,-722.24,0.00039853,2]
[341054226,1730308249134,-167.51263919,0.00039893,2]
[341054227,1730308249144,-499.0,0.000399,120]
[341054228,1730308249154,-1800.0,0.000399,14]
[341054229,1730308249165,-921.93355326,0.0003999,2]
[341054230,1730308249175,-309.24472639,0.00039992,2]
[341054231,1730308249184,-202.15900902,0.0004,2]
[341054232,1730308249194,-195000.0,0.0004,30]
[341054233,1730308249204,-54744.44750461,0.0004,30]
[341054234,1730308249214,-250.0,0.0004,30]
[341054235,1730308249224,-3297.9468729,0.0004,120]
[341054236,1730308249234,-153.37,0.0004,2]
[341054237,1730308249243,-153.37,0.0004,2]
[341054238,1730308249252,-153.37,0.0004,2]
[341054239,1730308249261,-153.37,0.0004,2]
[341054240,1730308249271,-153.37,0.0004,2]
[341054241,1730308249280,-153.37,0.0004,2]
[341054242,1730308249290,-153.37,0.0004,2]
[341054243,1730308249299,-153.37,0.0004,2]
[341054244,1730308249309,-153.37,0.0004,2]
[341054245,1730308249319,-166.62,0.00040083,2]
[341054246,1730308249329,-152.0,0.00040214,9]
[341054247,1730308249339,-414.23237937,0.0004038,15]
[341054248,1730308249348,-3300.69,0.0004041,120]
[341054249,1730308249359,-1294.41,0.00040709,2]
[341054250,1730308249367,-309.24472639,0.00040802,2]
[341054251,1730308249377,-254.71,0.0004089,2]
[341054252,1730308249387,-4284.64,0.00041036,2]
[341054253,1730308249400,-5000.0,0.00041058,2]
[341054254,1730308249410,-3300.69,0.00041095,120]
[341054255,1730308249420,-157.0,0.00041096,2]
[341054256,1730308249430,-150.0,0.00041096,2]
[341054257,1730308249439,-4291.83,0.00041096,2]
[341054258,1730308249449,-5000.0,0.000411,2]
[341054259,1730308249459,-350.0,0.000411,2]
[341054260,1730308249470,-1000.0,0.000411,2]
[341054261,1730308249481,-332.78775157,0.000411,2]
[341054262,1730308249491,-200.0,0.000411,2]
[341054263,1730308249500,-2501.55,0.00041192,2]
[341054264,1730308249510,-441.29311444,0.00041234,31]
[341054265,1730308249520,-414.23237937,0.00041296,15]
[341054266,1730308249530,-5000.0,0.00041369,2]
[341054267,1730308249540,-1000.0,0.00041452,2]
[341054268,1730308249550,-382.35423855,0.00041479,2]
[341054269,1730308249560,-5000.0,0.00041488,2]
[341054270,1730308249571,-152.0,0.00041495,10]
[341054271,1730308249581,-1000.0,0.00041499,2]
[341054272,1730308249591,-5000.0,0.0004152,2]
[341054273,1730308249601,-3643.73,0.00041524,2]
[341054274,1730308249611,-896.62,0.00041542,2]
[341054275,1730308249621,-22192.65,0.00041546,2]
[341054276,1730308249631,-1306.05,0.00041559,2]
[341054277,1730308249640,-299.326,0.00041559,2]
[341054278,1730308249650,-811.0,0.00041559,2]
[341054279,1730308249660,-5000.0,0.00041577,2]
[341054280,1730308249670,-309.24472639,0.00041613,2]
[341054281,1730308249680,-5000.0,0.00041625,2]
[341054282,1730308249689,-151.14,0.00041724,2]
[341054283,1730308249699,-5000.0,0.00041741,2]
[341054284,1730308249709,-3300.69,0.0004178,120]
[341054285,1730308249719,-5000.0,0.00041784,2]
[341054286,1730308249728,-519.31,0.00041827,2]
[341054287,1730308249738,-150.0,0.00041864,2]
[341054288,1730308249747,-1327.97216597,0.0004188,2]
[341054289,1730308249758,-153.37,0.0004188,2]
[341054290,1730308249767,-299.44515675,0.000419,120]
[341054291,1730308249776,-1860.8,0.00041904,2]
[341054292,1730308249786,-1577.97,0.00041908,2]
[341054293,1730308249796,-2501.55,0.00041985,2]
[341054294,1730308249806,-153.37,0.0004199,2]
[341054295,1730308249815,-153.37,0.0004199,2]
[341054296,1730308249826,-3635.49875692,0.00042,2]
[341054297,1730308249835,-357840.70898798,0.00042,2]